lending/lending_fUSD_20241212
["ID","MTS","AMOUNT","RATE_DAILY","PERIOD"]
[345089553,1733998246434,-210.912354,0.0001929,2]
[345089554,1733998246443,-210.912354,0.0001929,2]
[345089555,1733998246452,-151.0,0.0001929,2]
[345089556,1733998246462,-151.0,0.0001929,2]
[345089557,1733998246472,-198.237353,0.0001929,2]
[345089558,1733998246482,-845.811813,0.0001929,2]
[345089559,1733998246491,-198.237353,0.0001929,2]
[345089560,1733998246502,-845.811813,0.0001929,2]
[345089561,1733998246512,-151.0,0.0001929,2]
[345089562,1733998246523,-151.0,0.0001929,2]
[345089563,1733998246532,-151.0,0.0001929,2]
[345089564,1733998246541,-151.0,0.0001929,2]
[345089565,1733998246550,-1132.680844,0.0001929,2]
[345089566,1733998246560,-339.531723,0.0001929,2]
[345089567,1733998246570,-151.0,0.0001929,2]
[345089568,1733998246581,-1132.680844,0.0001929,2]
[345089569,1733998246591,-339.531723,0.0001929,2]
[345089570,1733998246601,-151.0,0.0001929,2]
[345089571,1733998246611,-607.025471,0.0001929,2]
[345089572,1733998246622,-607.025471,0.0001929,2]
[345089573,1733998246631,-883.601198,0.0001929,2]
[345089574,1733998246641,-883.601198,0.0001929,2]
[345089575,1733998246653,-151.0,0.0001929,2]
[345089576,1733998246663,-211.739156,0.0001929,2]
[345089577,1733998246673,-211.739156,0.0001929,2]
[345089578,1733998246683,-292.150239,0.0001929,2]
[345089579,1733998246693,-1502.830781,0.0001929,2]
[345089580,1733998246702,-1502.830781,0.0001929,2]
[345089581,1733998246712,-151.0,0.0001929,2]
[345089582,1733998246721,-164.210464,0.0001929,2]
[345089583,1733998246730,-164.210464,0.0001929,2]
[345089584,1733998246740,-345.409775,0.0001929,2]
[345089585,1733998246749,-345.409775,0.0001929,2]
[345089586,1733998246759,-151.0,0.0001929,2]
[345089587,1733998246769,-151.0,0.0001929,2]
[345089588,1733998246779,-151.0,0.0001929,2]
[345089589,1733998246788,-10000.0,0.0001929,2]
[345089590,1733998246797,-10000.0,0.0001929,2]
[345089591,1733998246807,-151.0,0.0001929,2]
[345089592,1733998246816,-190.159443,0.0001929,2]
[345089593,1733998246827,-151.0,0.0001929,2]
[345089594,1733998246840,-190.159443,0.0001929,2]
[345089595,1733998246851,-10000.0,0.0001929,2]
[345089596,1733998246867,-231.313639,0.0001929,2]
[345089597,1733998246876,-10000.0,0.0001929,2]
[345089598,1733998246886,-736.67128,0.0001929,2]
[345089599,1733998246895,-151.0,0.0001929,2]
[345089600,1733998246905,-151.0,0.0001929,2]
[345089601,1733998246914,-171004.78450217,0.0001929,2]
[345089602,1733998246924,-220.0,0.00019299,2]
[345089603,1733998246934,-653.58,0.00019315,2]
[345089604,1733998246943,-500.0,0.00019315,2]
[345089605,1733998246953,-44213.0,0.00019316,2]
[345089606,1733998246963,-164.264112,0.00019316,2]
[345089607,1733998246972,-442.643939,0.00019316,2]
[345089608,1733998246982,-442.643939,0.00019316,2]
[345089609,1733998246991,-151.0,0.00019316,2]
[345089610,1733998247000,-151.0,0.00019316,2]
[345089611,1733998247009,-151.0,0.00019316,2]
[345089612,1733998247018,-151.0,0.00019316,2]
[345089613,1733998247027,-151.0,0.00019316,2]
[345089614,1733998247037,-151.0,0.00019316,2]
[345089615,1733998247047,-460.596648,0.00019316,2]
[345089616,1733998247056,-151.0,0.00019316,2]
[345089617,1733998247067,-477.504988,0.00019316,2]
[345089618,1733998247077,-9.17644415,0.00019316,2]
[345089619,1733998247118,-141.82355585,0.00019316,2]
[345089620,1733998247134,-477.504988,0.00019316,2]
[345089621,1733998247145,-151.0,0.00019316,2]
[345089622,1733998247156,-151.0,0.00019316,2]
[345089623,1733998247167,-2871.172505,0.00019316,2]
[345089624,1733998247179,-814.49895115,0.00019316,2]
[345089625,1733998247193,-2056.67355385,0.00019316,2]
[345089626,1733998247203,-181.749021,0.00019316,2]
[345089627,1733998247215,-181.749021,0.00019316,2]
[345089628,1733998247226,-90.87621878,0.00019316,2]
[345089629,1733998247238,-60.12378122,0.00019316,2]
[345089630,1733998247249,-151.0,0.00019316,2]
[345089631,1733998247259,-151.0,0.00019316,2]
[345089632,1733998247269,-315.643629,0.00019316,2]
[345089633,1733998247278,-315.643629,0.00019316,2]
[345089634,1733998247288,-151.0,0.00019316,2]
[345089635,1733998247298,-445.184258,0.00019316,2]
[345089636,1733998247307,-445.184258,0.00019316,2]
[345089637,1733998247317,-151.0,0.00019316,2]
[345089638,1733998247327,-453.363982,0.00019316,2]
[345089639,1733998247336,-453.363982,0.00019316,2]
[345089640,1733998247345,-151.0,0.00019316,2]
[345089641,1733998247354,-151.0,0.00019316,2]
[345089642,1733998247363,-160.741922,0.00019316,2]
[345089643,1733998247372,-748.295584,0.00019316,2]
[345089644,1733998247381,-151.0,0.00019316,2]
[345089645,1733998247391,-748.295584,0.00019316,2]
[345089646,1733998247403,-151.0,0.00019316,2]
[345089647,1733998247415,-429.274495,0.00019316,2]
[345089648,1733998247429,-429.274495,0.00019316,2]
[345089649,1733998247441,-395.34944,0.00019316,2]
[345089650,1733998247454,-151.0,0.00019316,2]
[345089651,1733998247465,-395.34944,0.00019316,2]
[345089652,1733998247475,-194.614766,0.00019316,2]
[345089653,1733998247486,-194.614766,0.00019316,2]
[345089654,1733998247498,-699.302449,0.00019316,2]
[345089655,1733998247510,-699.302449,0.00019316,2]
[345089656,1733998247522,-853.423449,0.00019316,2]
[345089657,1733998247533,-853.423449,0.00019316,2]
[345089658,1733998247544,-196.848625,0.00019316,2]
[345089659,1733998247556,-196.848625,0.00019316,2]
[345089660,1733998247568,-151.0,0.00019316,2]
[345089661,1733998247579,-401.867715,0.00019316,2]
[345089662,1733998247591,-104.70492483,0.00019316,2]
[345089669,1733999028366,-800.0,0.0001352,2]
[345089670,1733999028389,-800.0,0.0001352,2]
[345089671,1733999028413,-800.0,0.0001352,2]
[345089672,1733999028436,-800.0,0.0001352,2]
[345089673,1733999028460,-800.0,0.0001352,2]
[345089674,1733999028485,-800.0,0.0001352,2]
[345089675,1733999028509,-160.37,0.00013699,2]
[345089676,1733999141836,1971.99,1.1e-05,2]
[345089677,1733999141866,1538.155464,1.1e-05,2]
[345089683,1733999192179,525.61388288,0.000107,2]
[345089685,1733999292995,299.999999,0.0001,2]
[345089688,1733999325281,4380.0,0.0001,120]
[345089704,1733999432061,-324.45,0.00014185,2]
[345089705,1733999432071,-334.0,0.00014185,2]
[345089706,1733999432080,-368.54701767,0.0001548,2]
[345089707,1733999432092,-131.45298233,0.0001548,2]
[345089708,1733999432102,-1317.37,0.00015495,2]
[345089709,1733999432112,-191.59487851,0.00015699,2]
[345089710,1733999432471,-108.40512149,0.00015699,2]
[345089711,1733999432481,-3534.33022199,0.000157,2]
[345089719,1733999437816,-696.61180619,0.000157,2]
[345089720,1733999437827,-965.47893929,0.000157,2]
[345089721,1733999438051,-2388.94041669,0.000157,2]
[345089722,1733999438063,-2234.41121111,0.000157,2]
[345089723,1733999438075,-1050.43601082,0.000157,2]
[345089724,1733999438091,-10643.36908829,0.000157,2]
[345089725,1733999438106,-1600.45063083,0.000157,2]
[345089726,1733999438116,-545.0,0.00015904,2]
[345089727,1733999438125,-150.0,0.00016458,2]
[345089728,1733999438135,-175.42,0.00016712,2]
[345089729,1733999438145,-807.0,0.00016876,2]
[345089730,1733999438155,-2169.18,0.000169,31]
[345089731,1733999438165,-1527.78329042,0.000169,31]
[345089732,1733999438176,-641.39670958,0.000169,31]
[345089733,1733999438186,-1323.64534136,0.000169,31]
[345089734,1733999438197,-314.0740008,0.000169,31]
[345089735,1733999438212,-531.46065784,0.000169,31]
[345089736,1733999438222,-2169.18,0.000169,31]
[345089737,1733999438231,-2006.62865501,0.000169,31]
[345089738,1733999438252,-162.55134499,0.000169,31]
[345089739,1733999438262,-231.59441086,0.000169,31]
[345089833,1733999440018,-503.35,0.000169,31]
[345089834,1733999440178,-1434.23558914,0.000169,31]
[345089835,1733999440187,-2169.18,0.000169,31]
[345089836,1733999440197,-2169.18,0.000169,31]
[345089837,1733999440206,-1464.25883775,0.000169,31]
[345089845,1733999443533,-704.92116225,0.000169,31]
[345089846,1733999443543,-2169.18,0.000169,31]
[345089847,1733999443553,-2169.18,0.000169,31]
[345089848,1733999443563,-2169.18,0.000169,31]
[345089849,1733999443572,-2169.18,0.000169,31]
[345089850,1733999443582,-2169.18,0.000169,31]
[345089851,1733999443591,-2169.18,0.000169,31]
[345089852,1733999443600,-2169.18,0.000169,31]
[345089853,1733999443610,-677.06,0.00017215,7]
[345089854,1733999443620,-158.34,0.00017319,2]
[345089855,1733999443630,-250.0,0.00017327,2]
[345089856,1733999443639,-302.09,0.00017348,3]
[345089857,1733999443648,-150.0,0.00017351,2]
[345089858,1733999443662,-2751.0,0.00017393,2]
[345089859,1733999443671,-185.42,0.00017461,2]
[345089860,1733999443681,-274.39,0.00017461,2]
[345089861,1733999443691,-1600.0,0.00017534,2]
[345089862,1733999443701,-250.0,0.00017535,2]
[345089863,1733999443710,-200.0,0.00017543,2]
[345089864,1733999443720,-620.76,0.00017543,2]
[345089865,1733999443729,-500.0,0.00017554,2]
[345089866,1733999443741,-1024.39,0.00017583,30]
[345089867,1733999443751,-200.53,0.00017588,2]
[345089868,1733999443761,-1000.0,0.00017588,2]
[345089869,1733999443770,-4000.0,0.00017713,2]
[345089870,1733999443780,-1317.37,0.00017759,2]
[345089871,1733999443789,-250.0,0.00017878,2]
[345089872,1733999443799,-364.47,0.00018023,2]
[345089873,1733999443810,-1600.0,0.00018183,2]
[345089874,1733999443820,-200.121219,0.00018198,3]
[345089875,1733999443830,-500.0,0.0001822,2]
[345089876,1733999443839,-395.018,0.0001835,2]
[345089877,1733999443848,-965.76,0.00018467,2]
[345089878,1733999443857,-165.89,0.0001848,2]
[345089879,1733999443867,-160.37,0.00018493,2]
[345089880,1733999443876,-200.121219,0.00018498,3]
[345089881,1733999443885,-9900.6573507,0.000185,7]
[345089884,1733999445921,-5000.0,0.000185,7]
[345089885,1733999445943,-3923.31287798,0.000185,7]
[345089886,1733999445967,-553.6,0.000185,7]
[345089887,1733999445990,-1959.35734399,0.000185,7]
[345089888,1733999446002,-1370.999958,0.000185,7]
[345089889,1733999571529,654.28,0.00010137,2]
[345089893,1734000027979,-150.0,0.00019732,120]
[345089894,1734000028012,-150.0,0.00019904,120]
[345089895,1734000028044,-424.0,0.0002,120]
[345089896,1734000028069,-150.0,0.00020042,120]
[345089897,1734000048963,-7272.53841525,0.0002,60]
[345089898,1734000059029,-1822.28,0.000169,31]
[345089899,1734000059053,-1822.28,0.000169,31]
[345089900,1734000059077,-1822.28,0.000169,31]
[345089901,1734000059105,-1822.28,0.000169,31]
[345089902,1734000059131,-1822.28,0.000169,31]
[345089903,1734000059158,-1822.28,0.000169,31]
[345089904,1734000059182,-1822.28,0.000169,31]
[345089905,1734000059207,-1822.28,0.000169,31]
[345089906,1734000059237,-1822.28,0.000169,31]
[345089907,1734000059265,-1822.28,0.000169,31]
[345089908,1734000059292,-1822.28,0.000169,31]
[345089909,1734000059317,-1808.38158475,0.000169,31]
[345089911,1734000632152,-160.37,0.00013699,2]
[345089912,1734000632163,-370.63619147,0.00014924,2]
[345089914,1734000632464,-581.02380853,0.00014924,2]
[345089915,1734000632474,-739.43857981,0.00015,2]
[345089916,1734000632486,-545.52039878,0.00015,2]
[345089917,1734000632510,-2299.7953425,0.00015,2]
[345089918,1734000632558,-951.66,0.00015,2]
[345089919,1734000632570,-1085.423385,0.00015,2]
[345089970,1734000638176,-2309.96829943,0.00015,2]
[345089971,1734000638222,-248.19399448,0.00015,2]
[345089972,1734000638232,-1211.93,0.00015182,2]
[345089973,1734000638242,-500.0,0.0001548,2]
[345089974,1734000638253,-150.0,0.00015973,2]
[345089975,1734000638262,-2699.79212915,0.000165,2]
[345089976,1734000638418,-2774.70979614,0.000165,2]
[345089977,1734000638432,-8318.21810281,0.000165,2]
[345089997,1734000640228,-3740.5799719,0.000165,2]
[345089998,1734000640238,-186.48,0.00016805,2]
[345089999,1734000640248,-654.28,0.00016813,2]
[345090000,1734000640257,-1603.85,0.000169,31]
[345090001,1734000640266,-1327.69191219,0.000169,31]
[345090002,1734000640277,-276.15808781,0.000169,31]
[345090003,1734000640287,-738.79609219,0.000169,31]
[345090004,1734000640297,-865.05390781,0.000169,31]
[345090005,1734000640306,-1603.85,0.000169,31]
[345090006,1734000640315,-1603.85,0.000169,31]
[345090007,1734000640324,-1603.85,0.000169,31]
[345090008,1734000640333,-1603.85,0.000169,31]
[345090009,1734000640342,-1603.85,0.000169,31]
[345090010,1734000640351,-753.71249609,0.000169,31]
[345090018,1734000644330,-645.79333856,0.000169,31]
[345090051,1734000646047,-204.34416535,0.000169,31]
[345090052,1734000646057,-1603.85,0.000169,31]
[345090053,1734000646066,-794.80080576,0.000169,31]
[345090054,1734000646465,-809.04919424,0.000169,31]
[345090055,1734000646474,-1603.85,0.000169,31]
[345090056,1734000646484,-1603.85,0.000169,31]
[345090057,1734000646493,-1603.85,0.000169,31]
[345090058,1734000646503,-1603.85,0.000169,31]
[345090059,1734000646512,-1603.85,0.000169,31]
[345090060,1734000646522,-2751.0,0.00016941,2]
[345090061,1734000646531,-190.0,0.00017,4]
[345090062,1734000646540,-2407.89,0.0001706,2]
[345090063,1734000646550,-1084.53,0.00017116,2]
[345090064,1734000646559,-975.22,0.00017201,2]
[345090065,1734000646569,-973.17,0.00017324,30]
[345090066,1734000646577,-1211.93,0.00017446,2]
[345090067,1734000646586,-190.0,0.000175,5]
[345090068,1734000646595,-1600.0,0.00017534,2]
[345090069,1734000646605,-216.45,0.00017578,2]
[345090070,1734000646614,-300.0,0.000176,6]
[345090071,1734000646628,-4000.0,0.00017637,2]
[345090072,1734000646637,-513.0,0.00017673,2]
[345090073,1734000646647,-159.81009293,0.00017673,2]
[345090074,1734000646656,-159.81367561,0.00017673,2]
[345090075,1734000646666,-257.26736089,0.00017673,2]
[345090076,1734000646676,-501.94960384,0.00017677,2]
[345090077,1734000646685,-900.17,0.00017677,2]
[345090078,1734000646695,-900.17,0.00017677,2]
[345090079,1734000646704,-900.17,0.00017677,2]
[345090080,1734000646714,-500.0,0.00017677,2]
[345090081,1734000646723,-500.0,0.00017677,2]
[345090082,1734000646731,-500.0,0.00017677,2]
[345090083,1734000646739,-500.0,0.00017677,2]
[345090084,1734000646748,-500.0,0.00017677,2]
[345090085,1734000646758,-500.0,0.00017677,2]
[345090086,1734000646767,-552.42,0.00017677,2]
[345090087,1734000646777,-552.42,0.00017677,2]
[345090088,1734000646786,-552.42,0.00017677,2]
[345090089,1734000646795,-500.0,0.00017677,2]
[345090090,1734000646804,-500.0,0.00017677,2]
[345090091,1734000646813,-591.49902907,0.00017677,2]
[345090092,1734000646823,-500.0,0.00017677,2]
[345090093,1734000646832,-500.0,0.00017677,2]
[345090094,1734000646839,-500.0,0.00017677,2]
[345090095,1734000646847,-502.76291501,0.00017677,2]
[345090096,1734000646857,-500.0,0.00017677,2]
[345090097,1734000646865,-500.0,0.00017677,2]
[345090098,1734000646880,-508.81,0.00017677,2]
[345090099,1734000646889,-500.0,0.00017677,2]
[345090100,1734000646898,-45702.03346096,0.00017678,2]
[345090101,1734000646910,-52938.849,0.00017678,2]
[345090102,1734000729671,450.0,0.00013,2]
[345090125,1734001389848,155.0,0.00013,30]
[345090126,1734001714442,4657.0,0.00013,5]
[345090140,1734001832639,-336.4325432,0.00013698,2]
[345090141,1734001832651,-1061.12457206,0.00013698,2]
[345090142,1734001832749,-2681.13771318,0.00013698,2]
[345090143,1734001832761,-2134.74678327,0.00013698,2]
[345090144,1734001832772,-2878.55838829,0.00013698,2]
[345090145,1734001832782,-160.51,0.00013699,2]
[345090146,1734001832792,-185.0,0.00013937,2]
[345090147,1734001832801,-163.02052276,0.00014,7]
[345090148,1734001832811,-1116.45,0.00014441,2]
[345090149,1734001832820,-435.43992675,0.00014712,2]
[345090150,1734001832831,-64.56007325,0.00014712,2]
[345090165,1734001833042,-515.118,0.00014924,2]
[345090167,1734001833052,-1098.0,0.00014924,2]
[345090169,1734001833061,-500.0,0.00015,2]
[345090171,1734001833071,-300.0,0.00015479,2]
[345090173,1734001833081,-886.5597948,0.0001548,2]
[345090175,1734001833093,-2023.54757395,0.0001548,2]
[345090177,1734001833105,-800.90251251,0.0001548,2]
[345090179,1734001838299,-4218.56252675,0.0001548,2]
[345090180,1734001838355,-2514.5355701,0.0001548,2]
[345090181,1734001838365,-500.0,0.0001548,2]
[345090182,1734001838374,-500.0,0.0001548,2]
[345090183,1734001838383,-221.36,0.0001548,2]
[345090184,1734001838392,-150.99,0.0001548,2]
[345090185,1734001838401,-430.93969055,0.0001548,2]
[345090186,1734001838413,-1692.61030945,0.0001548,2]
[345090187,1734001838426,-710.48628055,0.0001548,2]
[345090188,1734001838515,-550.68178164,0.0001548,2]
[345090189,1734001838570,-321.6050016,0.0001548,2]
[345090197,1734001840500,-391.52693621,0.0001548,2]
[345090198,1734001840509,-299.99,0.0001548,2]
[345090199,1734001840519,-9982.11,0.0001548,2]
[345090200,1734001840529,-2399.66,0.00015862,2]
[345090201,1734001840539,-499.05,0.00015862,2]
[345090202,1734001840548,-250.0,0.00015862,2]
[345090203,1734001840558,-2000.0,0.00016,2]
[345090204,1734001840568,-3108.732714,0.0001601,2]
[345090205,1734001840578,-150.0,0.00016052,2]
[345090206,1734001840587,-2751.0,0.00016135,2]
[345090207,1734001840597,-200.0,0.00016185,2]
[345090208,1734001840606,-500.0,0.0001621,2]
[345090209,1734001840616,-500.0,0.0001621,2]
[345090210,1734001840626,-487.0,0.0001621,2]
[345090211,1734001840635,-227.61,0.0001625,2]
[345090212,1734001840645,-1246.37,0.00016256,2]
[345090213,1734001840655,-975.22,0.00016379,2]
[345090214,1734001840665,-975.22,0.00016379,2]
[345090215,1734001840675,-975.22,0.00016379,2]
[345090216,1734001840685,-200.0,0.00016512,2]
[345090217,1734001840699,-1000.0,0.00016528,2]
[345090218,1734001840709,-291.56,0.00016528,2]
[345090220,1734001840718,-150.0,0.00016609,2]
[345090221,1734001840731,-924.51,0.00016658,30]
[345090222,1734001840741,-198.96,0.00016669,2]
[345090223,1734001840750,-1116.45,0.00016705,2]
[345090224,1734001840760,-974.91,0.00016878,2]
[345090225,1734001840770,-975.22,0.00016878,2]
[345090226,1734001840780,-1713.1,0.000169,31]
[345090227,1734001840790,-1713.1,0.000169,31]
[345090228,1734001840800,-1713.1,0.000169,31]
[345090229,1734001840809,-1713.1,0.000169,31]
[345090230,1734001840818,-1589.61040888,0.000169,31]
[345090231,1734001840840,-123.48959112,0.000169,31]
[345090232,1734001840850,-221.31040889,0.000169,31]
[345090238,1734001843656,-10000.0,0.0001548,2]
[345090239,1734001843666,-1491.78959111,0.000169,31]
[345090240,1734001843675,-1713.1,0.000169,31]
[345090241,1734001843685,-1713.1,0.000169,31]
[345090242,1734001843696,-1713.1,0.000169,31]
[345090243,1734001843707,-1713.1,0.000169,31]
[345090244,1734001843718,-1713.1,0.000169,31]
[345090245,1734001843735,-1713.1,0.000169,31]
[345090246,1734001843747,-1713.1,0.000169,31]
[345090247,1734001843758,-1713.1,0.000169,31]
[345090248,1734001843769,-1713.1,0.000169,31]
[345090249,1734001843782,-1713.1,0.000169,31]
[345090250,1734001843793,-354.04,0.00016956,2]
[345090251,1734001843804,-975.22,0.00016978,2]
[345090252,1734001843814,-550.0,0.00017,2]
[345090253,1734001843824,-184.0,0.00017,4]
[345090254,1734001843834,-728.94,0.00017056,2]
[345090255,1734001843843,-975.22,0.00017056,2]
[345090256,1734001843853,-604.57,0.00017131,2]
[345090257,1734001843863,-975.22,0.00017201,2]
[345090258,1734001843873,-4390.605,0.00017201,2]
[345090259,1734001843882,-428.15146824,0.00017326,2]
[345090260,1734001843892,-600.98555829,0.000175,2]
[345090261,1734001843901,-184.0,0.000175,5]
[345090262,1734001843911,-1600.0,0.00017534,2]
[345090263,1734001843920,-2500.0,0.00017577,2]
[345090264,1734001843930,-2206.0475,0.00017577,2]
[345090265,1734001843939,-802.7695,0.00017577,2]
[345090266,1734001843948,-157.56848959,0.00017577,2]
[345090267,1734001843958,-157.56848959,0.00017578,2]
[345090268,1734001843967,-157.56848959,0.00017579,2]
[345090269,1734001843987,-500.0,0.000176,6]
[345090270,1734001843997,-250.0,0.00017607,2]
[345090271,1734001844006,-158.00304145,0.00017676,2]
[345090272,1734001844015,-500.0,0.00017676,2]
[345090273,1734001844027,-500.0,0.00017676,2]
[345090274,1734001844037,-500.0,0.00017676,2]
[345090275,1734001844046,-500.0,0.00017676,2]
[345090276,1734001844055,-231.78987214,0.00017676,2]
[345090277,1734001844067,-740.83012786,0.00017676,2]
[345090278,1734001844076,-972.62,0.00017676,2]
[345090279,1734001844085,-500.0,0.00017676,2]
[345090280,1734001844094,-500.0,0.00017676,2]
[345090281,1734001844103,-500.0,0.00017676,2]
[345090282,1734001844113,-500.0,0.00017676,2]
[345090283,1734001844122,-808.48,0.00017676,2]
[345090284,1734001844131,-808.48,0.00017676,2]
[345090285,1734001844142,-808.48,0.00017676,2]
[345090286,1734001844151,-500.0,0.00017676,2]
[345090287,1734001844160,-500.0,0.00017676,2]
[345090288,1734001844170,-500.0,0.00017676,2]
[345090289,1734001844179,-500.0,0.00017676,2]
[345090290,1734001844188,-500.0,0.00017676,2]
[345090291,1734001844198,-500.0,0.00017676,2]
[345090292,1734001844207,-500.0,0.00017676,2]
[345090293,1734001844217,-500.0,0.00017676,2]
[345090294,1734001844226,-500.0,0.00017676,2]
[345090295,1734001844236,-500.0,0.00017676,2]
[345090296,1734001844245,-194.84481808,0.00017676,2]
[345090297,1734001844254,-397.09,0.00017676,2]
[345090298,1734001844263,-500.0,0.00017676,2]
[345090299,1734001844272,-500.0,0.00017676,2]
[345090300,1734001844282,-155.56,0.00017676,2]
[345090301,1734001844291,-7892.48675841,0.00017677,2]
[345090302,1734001844314,-3474.91,0.00017677,2]
[345090310,1734001846256,-2353.0,0.00017501,2]
[345090311,1734001846266,-500.0,0.00017676,2]
[345090312,1734001846275,-8632.60324159,0.00017677,2]
[345090313,1734001846284,-28077.92778123,0.00017677,4]
[345090314,1734001846307,-5973.0637386,0.00017677,4]
[345090315,1734001846544,-500.0,0.00017676,2]
[345090316,1734001846553,-201387.25874947,0.00017677,4]
[345090317,1734001846570,-11472.27023372,0.00017677,4]
[345090318,1734001846588,-431.73470497,0.00017677,4]
[345090320,1734002352688,588.85,0.00010137,2]
[345090329,1734002932403,450.0,0.00013,2]
[345090363,1734003031669,-156.19,0.00013699,2]
[345090364,1734003031679,-246.31711255,0.00014315,2]
[345090365,1734003031691,-1967.17905138,0.00014315,2]
[345090366,1734003031721,-1422.98543607,0.00014315,2]
[345090367,1734003031731,-1204.08,0.00014388,2]
[345090368,1734003031741,-16491.66466261,0.00015,2]
[345090369,1734003031753,-1146.145,0.00015,2]
[345090370,1734003031773,-2010.1122,0.00015,2]
[345090371,1734003031926,-456.16000023,0.00015,2]
[345090386,1734003037590,-3156.49233007,0.00015,2]
[345090387,1734003037602,-483.61883723,0.00015,2]
[345090388,1734003037635,-30110.60203636,0.00015,2]
[345090389,1734003037681,-18819.37474599,0.00015,2]
[345090390,1734003037691,-500.0,0.00015,2]
[345090391,1734003037701,-507.47687955,0.0001548,2]
[345090392,1734003037711,-273.442,0.00015582,2]
[345090393,1734003037720,-456.16,0.00015582,2]
[345090394,1734003037730,-663.873,0.00015582,2]
[345090395,1734003037739,-1167.0,0.00015582,2]
[345090396,1734003037749,-6944.95806386,0.00016,2]
[345090397,1734003037759,-250.0,0.00016112,2]
[345090398,1734003037768,-200.0,0.00016122,2]
[345090399,1734003037778,-150.0,0.00016132,2]
[345090400,1734003037788,-250.0,0.00016165,2]
[345090401,1734003037797,-1000.0,0.00016196,2]
[345090402,1734003037814,-1999.71,0.00016294,2]
[345090403,1734003037823,-200.0,0.0001634,2]
[345090404,1734003037833,-186.82,0.00016553,2]
[345090405,1734003037842,-1204.08,0.00016651,2]
[345090406,1734003037852,-2751.0,0.00016654,2]
[345090407,1734003037861,-9999.99,0.00016654,2]
[345090408,1734003037870,-219.33,0.00016712,2]
[345090409,1734003037879,-988.0,0.00016756,2]
[345090410,1734003037889,-186.48,0.00016794,2]
[345090411,1734003037898,-376.24499216,0.00016813,2]
[345090412,1734003037914,-212.60500784,0.00016813,2]
[345090413,1734003037924,-975.06,0.00016849,2]
[345090415,1734003037933,-269.31765078,0.00016878,30]
[345090417,1734003037947,-608.96234922,0.00016878,30]
[345090419,1734003037957,-4542.94829609,0.00017,2]
[345090421,1734003037967,-550.0,0.00017,2]
[345090423,1734003037976,-5000.0,0.00017,2]
[345090425,1734003037987,-1949.48,0.00017078,2]
[345090427,1734003037997,-150.0,0.00017098,2]
[345090429,1734003038007,-364.31,0.00017098,2]
[345090431,1734003038016,-236.48,0.00017098,2]
[345090433,1734003038026,-238.34,0.00017152,2]
[345090435,1734003038036,-300.0,0.00017225,2]
[345090436,1734003038045,-1001.93534769,0.00017487,2]
[345090437,1734003038059,-2107.52,0.00017489,7]
[345090438,1734003038068,-2107.52,0.00017489,7]
[345090439,1734003038078,-2107.52,0.00017489,7]
[345090440,1734003038088,-2107.52,0.00017489,7]
[345090441,1734003038097,-1111.9751,0.000175,2]
[345090442,1734003038107,-500.0,0.000175,6]
[345090443,1734003038116,-428.15146824,0.00017508,2]
[345090444,1734003038126,-156.19,0.00017534,2]
[345090445,1734003038136,-1600.0,0.00017534,2]
[345090446,1734003038146,-411.7226,0.00017577,2]